[Event "GrandPrix_30.05"]
[Site "Chess.com"]
[Date "2020.05.30"]
[Round "2"]
[White "RitvarsReimanis"]
[Black "KJakubowski"]
[Result "1-0"]
[WhiteElo "2142"]
[BlackElo "2372"]
[TimeControl "600+2"]
[EndTime "8:55:33 PDT"]
[Termination "RitvarsReimanis won on time"]

1. d4 {[%clk 0:10:01.9]} 1... Nf6 {[%clk 0:09:54.8]} 2. c4 {[%clk 0:10:00.7]}
2... e6 {[%clk 0:09:54.8]} 3. Nf3 {[%clk 0:09:59.9]} 3... d5 {[%clk 0:09:54.4]}
4. Nc3 {[%clk 0:09:50.4]} 4... Nbd7 {[%clk 0:09:49.9]} 5. Bf4 {[%clk 0:09:22.8]}
5... dxc4 {[%clk 0:09:47.3]} 6. e3 {[%clk 0:09:18.9]} 6... Nd5 {[%clk
0:09:48.6]} 7. Bxc4 {[%clk 0:09:13.4]} 7... Nxf4 {[%clk 0:09:49.4]} 8. exf4
{[%clk 0:09:15.3]} 8... Nb6 {[%clk 0:09:49.9]} 9. Bd3 {[%clk 0:09:12.1]} 9... g6
{[%clk 0:09:50.5]} 10. h4 {[%clk 0:09:09.9]} 10... Bg7 {[%clk 0:09:49.3]} 11. h5
{[%clk 0:09:10.3]} 11... Bd7 {[%clk 0:09:48.5]} 12. h6 {[%clk 0:08:57.1]} 12...
Bf6 {[%clk 0:09:37.6]} 13. Ne4 {[%clk 0:08:58.1]} 13... Bc6 {[%clk 0:09:34.9]}
14. Nxf6+ {[%clk 0:08:25.7]} 14... Qxf6 {[%clk 0:09:33.3]} 15. g3 {[%clk
0:08:04.4]} 15... O-O-O {[%clk 0:09:11.7]} 16. O-O {[%clk 0:07:55.8]} 16... Bxf3
{[%clk 0:08:12]} 17. Qxf3 {[%clk 0:07:55.2]} 17... Rxd4 {[%clk 0:08:08.8]} 18.
Be4 {[%clk 0:07:09.4]} 18... c6 {[%clk 0:06:41.3]} 19. Rac1 {[%clk 0:06:26.6]}
19... Kb8 {[%clk 0:06:34.6]} 20. b3 {[%clk 0:06:05.4]} 20... Rhd8 {[%clk
0:06:23.9]} 21. a4 {[%clk 0:05:50.8]} 21... Nd5 {[%clk 0:06:20.9]} 22. a5 {[%clk
0:04:43.3]} 22... a6 {[%clk 0:06:19.6]} 23. Rc4 {[%clk 0:04:36.2]} 23... Rd2
{[%clk 0:04:38]} 24. Rfc1 {[%clk 0:02:00.4]} 24... Qb2 {[%clk 0:04:25.1]} 25.
Rb1 {[%clk 0:01:32.9]} 25... Qa2 {[%clk 0:04:21.6]} 26. Ra4 {[%clk 0:01:24.6]}
26... Rxf2 {[%clk 0:01:52.7]} 27. Qxf2 {[%clk 0:00:39.5]} 27... Qxf2+ {[%clk
0:01:51.2]} 28. Kxf2 {[%clk 0:00:41.4]} 28... Nc3 {[%clk 0:01:51.4]} 29. Raa1
{[%clk 0:00:26.7]} 29... Nxe4+ {[%clk 0:01:48.5]} 30. Kg2 {[%clk 0:00:16.4]}
30... Rd2+ {[%clk 0:01:42.5]} 31. Kf3 {[%clk 0:00:15.3]} 31... f5 {[%clk
0:00:58.6]} 32. Rd1 {[%clk 0:00:16.7]} 32... Rf2+ {[%clk 0:00:59.6]} 33. Ke3
{[%clk 0:00:18.3]} 33... Kc7 {[%clk 0:01:00.9]} 34. Kd4 {[%clk 0:00:11.6]} 34...
Kd6 {[%clk 0:00:51.2]} 35. Ke3+ {[%clk 0:00:11.8]} 35... Ke7 {[%clk 0:00:51.6]}
36. Rd3 {[%clk 0:00:10.8]} 36... Rh2 {[%clk 0:00:20.3]} 37. Rad1 {[%clk
0:00:09.4]} 37... Nf6 {[%clk 0:00:20.6]} 38. Rd4 {[%clk 0:00:07.9]} 38... Nd5+
{[%clk 0:00:14.4]} 39. Kf3 {[%clk 0:00:08.1]} 39... Rxh6 {[%clk 0:00:13.2]} 40.
R4d2 {[%clk 0:00:06.5]} 40... Rh5 {[%clk 0:00:06.4]} 41. Re1 {[%clk 0:00:06.1]}
41... Kd6 {[%clk 0:00:06.4]} 42. Rc1 {[%clk 0:00:04.4]} 42... g5 {[%clk
0:00:06.3]} 43. fxg5 {[%clk 0:00:03.8]} 43... Rxg5 {[%clk 0:00:07.3]} 44. Rh1
{[%clk 0:00:05.7]} 44... Rg7 {[%clk 0:00:08.1]} 45. Rh6 {[%clk 0:00:05.7]} 45...
Re7 {[%clk 0:00:08.1]} 46. Rdh2 {[%clk 0:00:05.4]} 46... Kc5 {[%clk 0:00:06.5]}
47. Rxh7 {[%clk 0:00:06.5]} 47... e5 {[%clk 0:00:05.4]} 48. Rxe7 {[%clk
0:00:07.4]} 48... Nxe7 {[%clk 0:00:06.2]} 49. Rh7 {[%clk 0:00:09.1]} 49... Nd5
{[%clk 0:00:07.6]} 50. Rxb7 {[%clk 0:00:10]} 50... e4+ {[%clk 0:00:09.5]} 51.
Ke2 {[%clk 0:00:10.8]} 51... Kd4 {[%clk 0:00:09.9]} 52. Rb6 {[%clk 0:00:11.6]}
52... Nc3+ {[%clk 0:00:10.8]} 53. Ke1 {[%clk 0:00:12.8]} 53... e3 {[%clk
0:00:04.4]} 54. Rxc6 {[%clk 0:00:12.8]} 54... Ne4 {[%clk 0:00:05.2]} 55. Rxa6
{[%clk 0:00:12.8]} 55... Nxg3 {[%clk 0:00:06.2]} 56. Rd6+ {[%clk 0:00:12.7]}
56... Ke4 {[%clk 0:00:06.8]} 57. a6 {[%clk 0:00:13.4]} 57... f4 {[%clk
0:00:07.6]} 58. a7 {[%clk 0:00:14.4]} 58... f3 {[%clk 0:00:08.5]} 59. a8=Q+
{[%clk 0:00:15.8]} 1-0

[Event "GrandPrix_30.05"]
[Site "Chess.com"]
[Date "2020.05.30"]
[Round "2"]
[White "Magicmaster17"]
[Black "Jaka_Brilej"]
[Result "1-0"]
[WhiteElo "2434"]
[BlackElo "2119"]
[TimeControl "600+2"]
[EndTime "8:55:33 PDT"]
[Termination "Magicmaster17 won by resignation"]

1. e4 {[%clk 0:09:59.7]} 1... c5 {[%clk 0:09:57.6]} 2. Nf3 {[%clk 0:10:00.5]}
2... Nc6 {[%clk 0:09:56.6]} 3. Bb5 {[%clk 0:10:00.8]} 3... Nf6 {[%clk
0:09:52.8]} 4. Qe2 {[%clk 0:09:30.9]} 4... g6 {[%clk 0:09:52.2]} 5. c3 {[%clk
0:09:26.4]} 5... Bg7 {[%clk 0:09:49.7]} 6. O-O {[%clk 0:09:15.3]} 6... O-O
{[%clk 0:09:49.7]} 7. d4 {[%clk 0:09:16.2]} 7... cxd4 {[%clk 0:09:45.9]} 8. cxd4
{[%clk 0:09:16.7]} 8... d5 {[%clk 0:08:58.5]} 9. e5 {[%clk 0:09:16.4]} 9... Ne4
{[%clk 0:08:58.8]} 10. Nc3 {[%clk 0:09:17.5]} 10... Bg4 {[%clk 0:08:25.8]} 11.
Rd1 {[%clk 0:08:29.3]} 11... Nxc3 {[%clk 0:07:55.8]} 12. bxc3 {[%clk 0:08:29.2]}
12... a6 {[%clk 0:07:50.6]} 13. Bxc6 {[%clk 0:07:39.5]} 13... bxc6 {[%clk
0:07:50]} 14. Ba3 {[%clk 0:07:41]} 14... Re8 {[%clk 0:07:42.4]} 15. h3 {[%clk
0:07:42.2]} 15... Bxf3 {[%clk 0:07:34]} 16. Qxf3 {[%clk 0:07:44.1]} 16... Qa5
{[%clk 0:07:25.9]} 17. Bb4 {[%clk 0:07:12.2]} 17... Qa4 {[%clk 0:07:25.1]} 18.
Rdb1 {[%clk 0:07:10.3]} 18... Rab8 {[%clk 0:07:22.4]} 19. Bc5 {[%clk 0:04:56.6]}
19... Rb5 {[%clk 0:07:06.2]} 20. Rb4 {[%clk 0:04:56.1]} 20... Rxb4 {[%clk
0:06:44.5]} 21. cxb4 {[%clk 0:04:55.8]} 21... Bf8 {[%clk 0:06:34.3]} 22. e6
{[%clk 0:04:52.1]} 22... f5 {[%clk 0:06:17.9]} 23. g4 {[%clk 0:02:42.8]} 23...
Qc2 {[%clk 0:06:15]} 24. g5 {[%clk 0:02:35]} 24... Bg7 {[%clk 0:04:38.7]} 25. a4
{[%clk 0:01:39.7]} 25... Qb2 {[%clk 0:04:04.6]} 26. Rd1 {[%clk 0:01:36.4]} 26...
Qc2 {[%clk 0:03:58.1]} 27. a5 {[%clk 0:01:12.4]} 27... Qe4 {[%clk 0:03:39.3]}
28. Kg2 {[%clk 0:01:12.3]} 28... Qxe6 {[%clk 0:03:23.8]} 29. Qg3 {[%clk
0:00:48.1]} 29... Qe2 {[%clk 0:03:10.3]} 30. Rd3 {[%clk 0:00:41.1]} 30... Qe4+
{[%clk 0:03:03.3]} 31. Kf1 {[%clk 0:00:27]} 31... e5 {[%clk 0:02:56.4]} 32. dxe5
{[%clk 0:00:15]} 32... Bxe5 {[%clk 0:02:51.9]} 33. Qf3 {[%clk 0:00:15.1]} 33...
Qc4 {[%clk 0:02:22.8]} 34. Kg2 {[%clk 0:00:15.6]} 34... Bg7 {[%clk 0:02:03.3]}
35. Rd1 {[%clk 0:00:10.4]} 35... Re4 {[%clk 0:02:00]} 36. Qa3 {[%clk 0:00:08.1]}
36... Qe2 {[%clk 0:01:18.3]} 37. Rc1 {[%clk 0:00:08.4]} 37... Rc4 {[%clk
0:01:05.5]} 38. Rxc4 {[%clk 0:00:05.9]} 38... Qxc4 {[%clk 0:01:06]} 39. Qg3
{[%clk 0:00:07.4]} 39... Qe4+ {[%clk 0:01:04.3]} 40. Kg1 {[%clk 0:00:08.7]}
40... Be5 {[%clk 0:01:04.8]} 41. Qb3 {[%clk 0:00:07.8]} 41... Kf7 {[%clk
0:00:54.7]} 42. Qa4 {[%clk 0:00:08.7]} 42... Qe1+ {[%clk 0:00:44.2]} 43. Kg2
{[%clk 0:00:09.4]} 43... Qe4+ {[%clk 0:00:44.3]} 44. Kg1 {[%clk 0:00:10.7]}
44... d4 {[%clk 0:00:39.3]} 45. Qb3+ {[%clk 0:00:11.4]} 45... Kg7 {[%clk
0:00:36.3]} 46. Qc4 {[%clk 0:00:06.7]} 46... d3 {[%clk 0:00:32.5]} 47. Qxa6
{[%clk 0:00:07.8]} 47... Qe1+ {[%clk 0:00:18.3]} 48. Kg2 {[%clk 0:00:09]} 48...
Qe4+ {[%clk 0:00:19.4]} 49. f3 {[%clk 0:00:10.4]} 49... Qe2+ {[%clk 0:00:20.3]}
50. Bf2 {[%clk 0:00:11.4]} 50... Bd6 {[%clk 0:00:06.3]} 51. Qb7+ {[%clk
0:00:11.6]} 51... Qe7 {[%clk 0:00:07.1]} 52. Qxc6 {[%clk 0:00:10.6]} 52... d2
{[%clk 0:00:08.1]} 53. Qc3+ {[%clk 0:00:11.3]} 53... Qe5 {[%clk 0:00:07.9]} 54.
Qxd2 {[%clk 0:00:10.8]} 54... Qh2+ {[%clk 0:00:08.6]} 55. Kf1 {[%clk 0:00:12.4]}
55... Qxh3+ {[%clk 0:00:09.4]} 56. Ke2 {[%clk 0:00:13.7]} 56... Qh2 {[%clk
0:00:10.5]} 57. Qd4+ {[%clk 0:00:13.2]} 57... Kf7 {[%clk 0:00:09.6]} 58. a6
{[%clk 0:00:14.5]} 58... Be5 {[%clk 0:00:02.9]} 59. Qd5+ {[%clk 0:00:14.1]} 1-0

[Event "GrandPrix_30.05"]
[Site "Chess.com"]
[Date "2020.05.30"]
[Round "2"]
[White "tacticthunder"]
[Black "GM_Levan_Pantsulaia"]
[Result "1-0"]
[WhiteElo "2220"]
[BlackElo "2496"]
[TimeControl "600+2"]
[EndTime "8:55:35 PDT"]
[Termination "tacticthunder won by resignation"]

1. e4 {[%clk 0:09:37]} 1... c5 {[%clk 0:10:00.2]} 2. Nf3 {[%clk 0:09:35.3]} 2...
e6 {[%clk 0:10:01.3]} 3. d4 {[%clk 0:09:34.5]} 3... cxd4 {[%clk 0:10:03.2]} 4.
Nxd4 {[%clk 0:09:36.4]} 4... a6 {[%clk 0:10:04.7]} 5. c4 {[%clk 0:09:36.3]} 5...
Nf6 {[%clk 0:10:04.9]} 6. Nc3 {[%clk 0:09:36.7]} 6... Qc7 {[%clk 0:10:06.4]} 7.
a3 {[%clk 0:09:37.5]} 7... Nxe4 {[%clk 0:10:06.5]} 8. Nxe4 {[%clk 0:09:37.2]}
8... Qe5 {[%clk 0:10:07.9]} 9. Bd3 {[%clk 0:09:32.1]} 9... Qxd4 {[%clk
0:10:08.6]} 10. Be3 {[%clk 0:08:31.1]} 10... Qxb2 {[%clk 0:10:06.8]} 11. O-O
{[%clk 0:08:16.5]} 11... f5 {[%clk 0:08:16.9]} 12. Nc5 {[%clk 0:06:47.9]} 12...
Nc6 {[%clk 0:07:00.1]} 13. Re1 {[%clk 0:05:34.5]} 13... Qf6 {[%clk 0:05:54.7]}
14. Rb1 {[%clk 0:03:49]} 14... Be7 {[%clk 0:05:24.9]} 15. Nxb7 {[%clk
0:03:48.4]} 15... O-O {[%clk 0:05:24.3]} 16. c5 {[%clk 0:03:48]} 16... a5 {[%clk
0:05:23.3]} 17. f4 {[%clk 0:03:37.7]} 17... a4 {[%clk 0:05:04.8]} 18. Bc4 {[%clk
0:01:22.3]} 18... Qc3 {[%clk 0:03:58.4]} 19. Nd6 {[%clk 0:00:23.8]} 19... Bxd6
{[%clk 0:03:50.2]} 20. Rc1 {[%clk 0:00:25.3]} 20... Qxe3+ {[%clk 0:02:17.1]} 21.
Rxe3 {[%clk 0:00:25.5]} 21... Bxf4 {[%clk 0:02:18.6]} 22. Rcc3 {[%clk 0:00:21]}
22... Bxe3+ {[%clk 0:02:14.1]} 23. Rxe3 {[%clk 0:00:22.9]} 23... Rf7 {[%clk
0:02:03.1]} 24. Qd6 {[%clk 0:00:20.9]} 24... Bb7 {[%clk 0:02:02.5]} 25. Re1
{[%clk 0:00:20.3]} 25... Na5 {[%clk 0:02:00.7]} 26. Bb5 {[%clk 0:00:16.1]} 26...
Bd5 {[%clk 0:01:38.6]} 27. h3 {[%clk 0:00:08.9]} 27... h6 {[%clk 0:00:56.5]} 28.
Kh2 {[%clk 0:00:08]} 28... Nc6 {[%clk 0:00:44.5]} 29. Rd1 {[%clk 0:00:05.8]}
29... Be4 {[%clk 0:00:39]} 30. Bd3 {[%clk 0:00:06.5]} 30... Bxd3 {[%clk
0:00:37.1]} 31. Qxd3 {[%clk 0:00:06]} 31... Rb8 {[%clk 0:00:25.4]} 32. Rb1
{[%clk 0:00:06.3]} 32... Rbf8 {[%clk 0:00:21.5]} 33. Rb7 {[%clk 0:00:03.7]}
33... f4 {[%clk 0:00:23]} 34. Qd6 {[%clk 0:00:02.7]} 34... f3 {[%clk 0:00:22.4]}
35. gxf3 {[%clk 0:00:04.6]} 35... e5 {[%clk 0:00:13.3]} 36. Rxd7 {[%clk
0:00:04]} 36... Rf6 {[%clk 0:00:14.7]} 37. Qd5+ {[%clk 0:00:04.4]} 37... Kh8
{[%clk 0:00:15.8]} 38. Rd6 {[%clk 0:00:05.7]} 38... Nd4 {[%clk 0:00:17]} 39.
Rxf6 {[%clk 0:00:05.8]} 39... Rxf6 {[%clk 0:00:18.9]} 40. Kg2 {[%clk 0:00:06.8]}
40... Nc6 {[%clk 0:00:15.5]} 41. Kf2 {[%clk 0:00:06.1]} 41... Kh7 {[%clk
0:00:11.3]} 42. Qe4+ {[%clk 0:00:06.6]} 42... Kg8 {[%clk 0:00:10.6]} 43. Qxa4
{[%clk 0:00:08.5]} 43... Kf7 {[%clk 0:00:11.9]} 44. Qc4+ {[%clk 0:00:08.3]}
44... Ke7 {[%clk 0:00:12.3]} 45. Qd5 {[%clk 0:00:09]} 45... Rf5 {[%clk
0:00:10.3]} 46. Ke3 {[%clk 0:00:08.7]} 46... Nd4 {[%clk 0:00:10.3]} 47. Qd6+
{[%clk 0:00:08.5]} 47... Kf7 {[%clk 0:00:10.8]} 48. c6 {[%clk 0:00:09.6]} 48...
Rxf3+ {[%clk 0:00:07.8]} 49. Ke4 {[%clk 0:00:10.5]} 49... Rc3 {[%clk 0:00:06.1]}
50. c7 {[%clk 0:00:10.8]} 50... Nb5 {[%clk 0:00:03]} 51. Qd7+ {[%clk 0:00:11.3]}
51... Kf6 {[%clk 0:00:04.4]} 52. Qxb5 {[%clk 0:00:11.9]} 52... Rxc7 {[%clk
0:00:05.1]} 53. Qb6+ {[%clk 0:00:12.5]} 1-0

[Event "GrandPrix_30.05"]
[Site "Chess.com"]
[Date "2020.05.30"]
[Round "2"]
[White "cassoulet"]
[Black "BogdanDeac"]
[Result "0-1"]
[WhiteElo "2113"]
[BlackElo "2492"]
[TimeControl "600+2"]
[EndTime "8:55:48 PDT"]
[Termination "BogdanDeac won by resignation"]

1. e4 {[%clk 0:10:01.9]} 1... e5 {[%clk 0:10:00.5]} 2. Nf3 {[%clk 0:10:03]} 2...
Nc6 {[%clk 0:10:01.1]} 3. Bc4 {[%clk 0:10:02.7]} 3... Nf6 {[%clk 0:10:01.6]} 4.
d3 {[%clk 0:10:03.9]} 4... Bc5 {[%clk 0:10:02.1]} 5. c3 {[%clk 0:10:03.7]} 5...
d6 {[%clk 0:10:02.9]} 6. Bb3 {[%clk 0:10:05.2]} 6... a6 {[%clk 0:09:57.6]} 7. h3
{[%clk 0:10:06.3]} 7... h6 {[%clk 0:09:41.1]} 8. Nbd2 {[%clk 0:10:06.7]} 8...
Be6 {[%clk 0:09:41.1]} 9. Nf1 {[%clk 0:10:07.3]} 9... d5 {[%clk 0:09:39.1]} 10.
Qe2 {[%clk 0:10:06.5]} 10... dxe4 {[%clk 0:08:57.1]} 11. dxe4 {[%clk 0:10:08.4]}
11... Qd7 {[%clk 0:08:58.1]} 12. Ng3 {[%clk 0:10:01.7]} 12... Bxb3 {[%clk
0:08:24.7]} 13. axb3 {[%clk 0:10:03.6]} 13... Rd8 {[%clk 0:08:25.7]} 14. b4
{[%clk 0:09:44.5]} 14... Bb6 {[%clk 0:08:25.1]} 15. Nh4 {[%clk 0:08:40.8]} 15...
g6 {[%clk 0:07:08.2]} 16. Qf3 {[%clk 0:08:07.4]} 16... Qd3 {[%clk 0:06:58.2]}
17. Qxd3 {[%clk 0:07:50]} 17... Rxd3 {[%clk 0:07:00.1]} 18. Ke2 {[%clk
0:07:51.4]} 18... Rd7 {[%clk 0:07:00.9]} 19. Nf3 {[%clk 0:07:38.9]} 19... Ke7
{[%clk 0:06:30.6]} 20. Nd2 {[%clk 0:07:08.7]} 20... h5 {[%clk 0:06:19.2]} 21. h4
{[%clk 0:06:12.2]} 21... Ng4 {[%clk 0:06:19.2]} 22. Rf1 {[%clk 0:06:12.8]} 22...
Nh2 {[%clk 0:06:08.5]} 23. Rh1 {[%clk 0:05:50.5]} 23... Ng4 {[%clk 0:06:07.9]}
24. Rf1 {[%clk 0:05:51.6]} 24... Nh2 {[%clk 0:05:46.5]} 25. Re1 {[%clk
0:05:41.6]} 25... Ng4 {[%clk 0:05:43.8]} 26. Nh1 {[%clk 0:05:41.3]} 26... Nf6
{[%clk 0:04:44.7]} 27. f3 {[%clk 0:05:35.1]} 27... Ne8 {[%clk 0:04:41.3]} 28.
Nc4 {[%clk 0:05:32.1]} 28... Nd6 {[%clk 0:04:39.8]} 29. Nxd6 {[%clk 0:05:12.1]}
29... Rxd6 {[%clk 0:04:28.5]} 30. Rd1 {[%clk 0:05:00.4]} 30... Rxd1 {[%clk
0:04:08.2]} 31. Kxd1 {[%clk 0:05:02.3]} 31... Nd8 {[%clk 0:04:09.2]} 32. Ke2
{[%clk 0:04:45.8]} 32... Ne6 {[%clk 0:04:09]} 33. Nf2 {[%clk 0:04:42.6]} 33...
Bxf2 {[%clk 0:03:45.8]} 34. Kxf2 {[%clk 0:04:44.5]} 34... Rd8 {[%clk 0:03:18.8]}
35. Ke2 {[%clk 0:04:44.1]} 35... f6 {[%clk 0:02:36.8]} 36. Be3 {[%clk 0:04:41]}
36... c6 {[%clk 0:02:36.9]} 37. g3 {[%clk 0:04:37.7]} 37... g5 {[%clk
0:02:28.9]} 38. Rh1 {[%clk 0:04:20.3]} 38... Rh8 {[%clk 0:02:28.8]} 39. Kf2
{[%clk 0:04:08.6]} 39... Kf7 {[%clk 0:02:13.9]} 40. Rd1 {[%clk 0:04:00.3]} 40...
Ke7 {[%clk 0:02:10.2]} 41. Bc5+ {[%clk 0:03:48.2]} 41... Nxc5 {[%clk 0:02:05.6]}
42. bxc5 {[%clk 0:03:50.1]} 42... gxh4 {[%clk 0:02:07]} 43. gxh4 {[%clk
0:03:51.4]} 43... Rb8 {[%clk 0:01:38.9]} 44. Rg1 {[%clk 0:03:22.3]} 44... Kf7
{[%clk 0:01:38.4]} 45. Ke3 {[%clk 0:02:59.4]} 45... b6 {[%clk 0:01:07.2]} 46.
cxb6 {[%clk 0:02:53.8]} 46... Rxb6 {[%clk 0:01:09.1]} 47. b4 {[%clk 0:02:55]}
47... c5 {[%clk 0:01:01.5]} 48. bxc5 {[%clk 0:02:48]} 48... Rc6 {[%clk
0:01:02.4]} 49. Ra1 {[%clk 0:02:29.2]} 49... Rxc5 {[%clk 0:01:02]} 50. Kd3
{[%clk 0:02:30.4]} 50... a5 {[%clk 0:00:59.8]} 51. c4 {[%clk 0:02:30.3]} 51...
Ke6 {[%clk 0:00:54.8]} 52. Kc3 {[%clk 0:02:30.4]} 52... Kd6 {[%clk 0:00:43.3]}
53. Rd1+ {[%clk 0:02:29.5]} 53... Kc7 {[%clk 0:00:42.9]} 54. Rd5 {[%clk
0:02:21.2]} 54... Kb6 {[%clk 0:00:39.6]} 55. Rd8 {[%clk 0:02:13.5]} 55... Rc6
{[%clk 0:00:17.2]} 56. Rb8+ {[%clk 0:02:05.8]} 56... Kc7 {[%clk 0:00:15.5]} 57.
Ra8 {[%clk 0:02:02.8]} 57... Kb6 {[%clk 0:00:13.8]} 58. Rh8 {[%clk 0:01:36.2]}
58... Kc5 {[%clk 0:00:14.7]} 59. Rb8 {[%clk 0:01:37.1]} 59... Ra6 {[%clk
0:00:10.5]} 60. Rb5+ {[%clk 0:01:26.4]} 60... Kc6 {[%clk 0:00:10.7]} 61. Kb3
{[%clk 0:00:54.3]} 61... Rb6 {[%clk 0:00:11]} 62. Rxb6+ {[%clk 0:00:20.7]} 62...
Kxb6 {[%clk 0:00:10.8]} 63. Ka4 {[%clk 0:00:22.6]} 63... Kc5 {[%clk 0:00:11.9]}
64. Kxa5 {[%clk 0:00:24.5]} 64... Kxc4 {[%clk 0:00:13.4]} 65. Kb6 {[%clk
0:00:25.7]} 65... Kd3 {[%clk 0:00:14.9]} 66. Kc5 {[%clk 0:00:27.2]} 66... Ke3
{[%clk 0:00:16.4]} 67. Kd5 {[%clk 0:00:28.6]} 67... Kxf3 {[%clk 0:00:17.9]} 68.
Ke6 {[%clk 0:00:30.5]} 68... Kxe4 {[%clk 0:00:18.9]} 69. Kxf6 {[%clk 0:00:32.2]}
69... Kf4 {[%clk 0:00:20.4]} 70. Kg6 {[%clk 0:00:33.1]} 70... Kg4 {[%clk
0:00:21.6]} 0-1

[Event "GrandPrix_30.05"]
[Site "Chess.com"]
[Date "2020.05.30"]
[Round "2"]
[White "v-kazakouski"]
[Black "mishanick"]
[Result "1/2-1/2"]
[WhiteElo "2446"]
[BlackElo "2927"]
[TimeControl "600+2"]
[EndTime "8:55:54 PDT"]
[Termination "Game drawn by agreement"]

1. d4 {[%clk 0:10:00.7]} 1... Nf6 {[%clk 0:09:59.3]} 2. Nf3 {[%clk 0:10:01]}
2... d5 {[%clk 0:09:59.8]} 3. c4 {[%clk 0:10:01.2]} 3... e6 {[%clk 0:10:00.6]}
4. g3 {[%clk 0:10:01.4]} 4... Bb4+ {[%clk 0:10:00.7]} 5. Nc3 {[%clk 0:10:01.1]}
5... dxc4 {[%clk 0:10:02.2]} 6. Bg2 {[%clk 0:10:01.3]} 6... O-O {[%clk
0:10:03.6]} 7. O-O {[%clk 0:10:01.7]} 7... Nc6 {[%clk 0:10:05]} 8. Qa4 {[%clk
0:10:01.7]} 8... Nd5 {[%clk 0:09:56]} 9. Qc2 {[%clk 0:10:01.8]} 9... Be7 {[%clk
0:09:56.9]} 10. Rd1 {[%clk 0:09:51.7]} 10... Bd7 {[%clk 0:09:58]} 11. h4 {[%clk
0:09:43]} 11... h6 {[%clk 0:09:46.6]} 12. Bd2 {[%clk 0:07:50.9]} 12... Rb8
{[%clk 0:09:16.5]} 13. Rac1 {[%clk 0:06:52.1]} 13... b5 {[%clk 0:09:07.4]} 14.
Qe4 {[%clk 0:06:43.6]} 14... Re8 {[%clk 0:06:49.6]} 15. Nxd5 {[%clk 0:05:38.2]}
15... exd5 {[%clk 0:06:48.5]} 16. Qxd5 {[%clk 0:05:39.2]} 16... Bd6 {[%clk
0:05:57]} 17. e4 {[%clk 0:04:42.4]} 17... Be6 {[%clk 0:04:32.4]} 18. Qh5 {[%clk
0:04:08.4]} 18... Qc8 {[%clk 0:04:28.4]} 19. Bxh6 {[%clk 0:03:36.6]} 19... gxh6
{[%clk 0:03:23.8]} 20. Qxh6 {[%clk 0:02:44.5]} 20... Bf8 {[%clk 0:03:19.5]} 21.
Qg5+ {[%clk 0:02:42.9]} 21... Bg7 {[%clk 0:03:14.8]} 22. d5 {[%clk 0:02:34.1]}
22... Nb4 {[%clk 0:02:43]} 23. dxe6 {[%clk 0:02:11.3]} 23... Qxe6 {[%clk
0:02:44.9]} 24. Rd2 {[%clk 0:00:56.2]} 24... Nd3 {[%clk 0:02:35.6]} 25. Rcc2
{[%clk 0:00:54.1]} 25... c6 {[%clk 0:01:40.5]} 26. b3 {[%clk 0:00:52.1]} 26...
Qxe4 {[%clk 0:01:29.5]} 27. bxc4 {[%clk 0:00:50.3]} 27... bxc4 {[%clk
0:01:29.3]} 28. h5 {[%clk 0:00:43.7]} 28... Rb5 {[%clk 0:01:26.5]} 29. Qh4
{[%clk 0:00:27.8]} 29... Rb4 {[%clk 0:00:39.8]} 30. Qg5 {[%clk 0:00:23.4]} 30...
f6 {[%clk 0:00:20]} 31. Qh4 {[%clk 0:00:21.5]} 31... Bh6 {[%clk 0:00:14.5]} 32.
Re2 {[%clk 0:00:13.2]} 32... Rb1+ {[%clk 0:00:14.8]} 33. Kh2 {[%clk 0:00:08]}
33... Qxh4+ {[%clk 0:00:15.5]} 34. Nxh4 {[%clk 0:00:09.9]} 34... Rxe2 {[%clk
0:00:16.6]} 35. Rxe2 {[%clk 0:00:11.8]} 35... c3 {[%clk 0:00:14.8]} 36. Be4
{[%clk 0:00:11.5]} 36... Rb2 {[%clk 0:00:13.2]} 37. Rxb2 {[%clk 0:00:10.5]}
37... Nxb2 {[%clk 0:00:15.1]} 38. Nf5 {[%clk 0:00:11]} 38... Bd2 {[%clk
0:00:14.7]} 39. Kg2 {[%clk 0:00:06.6]} 39... Nc4 {[%clk 0:00:15.9]} 40. Nd4
{[%clk 0:00:06.6]} 40... c5 {[%clk 0:00:15.8]} 41. Nc2 {[%clk 0:00:07.1]} 41...
Kg7 {[%clk 0:00:12.6]} 42. f4 {[%clk 0:00:06.4]} 42... Kh6 {[%clk 0:00:13.4]}
43. Bg6 {[%clk 0:00:08.1]} 43... Nd6 {[%clk 0:00:11.8]} 44. Kf3 {[%clk
0:00:05.4]} 44... f5 {[%clk 0:00:13.2]} 45. Na3 {[%clk 0:00:03]} 45... Kg7
{[%clk 0:00:09.1]} 46. Nc2 {[%clk 0:00:02.7]} 46... Kf6 {[%clk 0:00:10.3]} 47.
Bh7 {[%clk 0:00:04.2]} 47... Kg7 {[%clk 0:00:10.8]} 48. Bg6 {[%clk 0:00:05.4]}
48... Kh6 {[%clk 0:00:12.1]} 49. Na3 {[%clk 0:00:05.5]} 49... a6 {[%clk
0:00:13.6]} 50. Nc2 {[%clk 0:00:06.5]} 50... Kg7 {[%clk 0:00:15.2]} 51. Na3
{[%clk 0:00:06.8]} 51... Kf6 {[%clk 0:00:15.3]} 52. Nc2 {[%clk 0:00:07]} 52...
Nb5 {[%clk 0:00:14.5]} 53. g4 {[%clk 0:00:06.4]} 53... fxg4+ {[%clk 0:00:10]}
54. Kxg4 {[%clk 0:00:08.3]} 54... Nd4 {[%clk 0:00:11.1]} 55. Nxd4 {[%clk
0:00:09]} 55... cxd4 {[%clk 0:00:13]} 56. Bd3 {[%clk 0:00:10.3]} 56... a5 {[%clk
0:00:14.7]} 57. h6 {[%clk 0:00:11.5]} 57... Be3 {[%clk 0:00:15.1]} 58. Kf3
{[%clk 0:00:12.1]} 58... Bd2 {[%clk 0:00:16]} 59. h7 {[%clk 0:00:12.3]} 59...
Kg7 {[%clk 0:00:16.9]} 60. Kg4 {[%clk 0:00:11.5]} 60... a4 {[%clk 0:00:16.1]}
61. Kg5 {[%clk 0:00:11.2]} 61... a3 {[%clk 0:00:15.5]} 62. Kg4 {[%clk
0:00:12.5]} 62... Be3 {[%clk 0:00:16.6]} 63. Kf3 {[%clk 0:00:13.4]} 63... Bd2
{[%clk 0:00:16.4]} 64. Kg4 {[%clk 0:00:08.6]} 1/2-1/2